Workbook

Sheet Лист1
A1: Школа | C1: МБОУ "Тимершикская СОШ" | F1: Согласовал: | G1: должность | H1: директор
A2: Типовое примерное меню приготавливаемых блюд | G2: фамилия | H2: Карамов
A3: Возрастная категория | E3: 7-11 лет | G3: дата | H3: 2 | I3: 9 | J3: 2025
H4: день | I4: месяц | J4: год
A5: Неделя | B5: День недели | C5: Прием пищи | D5: Раздел меню | E5: Блюда | F5: Вес блюда, г | G5: Белки | H5: Жиры | I5: Углеводы | J5: Калорийность | K5: № рецептуры | L5: Цена
A6: 1 | B6: 1 | C6: Завтрак
D7: 2 блюдо | E7: Тефтели с мясом и рисом с соусом | F7: 90 | G7: 8.726 | H7: 12.46 | I7: 9.568 | J7: 165.608 | K7: 462:759
D8: гарнир | E8: Каша гречневая рассыпчатая со слив маслом | F8: 156 | G8: 6.486 | H8: 5.676 | I8: 34.764 | J8: 207.51 | K8: 378
D9: напиток | E9: Компот из урюка и яблок | F9: 200 | G9: 1.01 | H9: 0.028 | I9: 5.25 | J9: 24.75 | K9: 393
D10: хлеб | E10: хлеб сельский | F10: 40 | G10: 1.32 | H10: 0.48 | I10: 19.16 | J10: 94.8
D12: итого | F12: =F10+F9+F8+F7+F6 -> 486 | G12: =G6+G7+G8+G9+G10 -> 17.542 | H12: =H6+H7+H8+H9+H10 -> 18.644 | I12: =I10+I9+I8+I7+I6 -> 68.742 | J12: =J6+J7+J8+J9+J10 -> 492.668 | K12: 0
A13: 1 | B13: 1 | C13: Завтрак 2 | D13: гор.блюдо | E13: Каша вязкая молочная "Дружба" со слив маслом | F13: 130 | G13: 4,1 | H13: 4,555 | I13: 25,372 | J13: 156,76 | K13: 384
D14: гор.напиток | E14: Чай с сахаром | F14: 200 | G14: 0 | H14: 0 | I14: 8 | J14: 32 | K14: 959
D15: хлеб | E15: хлеб пшеничный | F15: 40 | G15: 3,04 | H15: 0,32 | I15: 19,68 | J15: 94
D16: итого | F16: =F15+F14+F13 -> 370 | G16: =G13+G14+G15 -> 7.14 | H16: =H15+H14+H13 -> 4.88 | I16: =I13+I14+I15 -> 53.05 | J16: =J13+J14+J15 -> 282.76 | K16: 0.00
A17: =A6 -> 1 | B17: =B6 -> 1 | C17: Итого за день: | F17: =F12+F16 -> 856 | G17: =G16+G12 -> 24.68 | H17: =H16+H12 -> 23.52 | I17: =I16 -> 53.05 | J17: =J16+J12 -> 775.43 | K17: 0.00
A18: 1 | B18: 2 | C18: Завтрак | D18: закуска | E18: свекла отварная с маслом растительным | F18: 60 | G18: 0.984 | H18: 3.063 | I18: 1.773 | J18: 24.522 | K18: 34
D19: 2 блюдо | E19: котлеты из мяса птицы с соусом | F19: 90 | G19: 6.5 | H19: 7.565 | I19: 11.447 | J19: 60.724 | K19: 667:759
D20: гарнир | E20: картофельное пюре со слив маслом | F20: 155 | G20: 1,424 | H20: 2,092 | I20: 8.135 | J20: 59,212 | K20: 299
D21: гор.напиток | E21: цикорий с молоком | F21: 200 | G21: 2.88 | H21: 1,204 | I21: 3 | J21: 46,6 | K21: 958
D22: хлеб | E22: хлеб сельский | F22: 40 | G22: 1,32 | H22: 0.48 | I22: 19.16 | J22: 94.8
D23: итого | F23: =SUM(F18:F22) -> 545 | G23: =SUM(G18:G22) -> 10.364 | H23: =SUM(H18:H22) -> 11.108 | I23: =SUM(I18:I22) -> 43.515 | J23: =SUM(J18:J22) -> 180.046 | K23: 0
A24: =A18 -> 1 | B24: =B18 -> 2 | C24: Завтрак 2 | D24: гор.блюдо | E24: Каша вязкая молочная из овсяной крупы со слив маслом | F24: 130 | G24: 5,285 | H24: 4,485 | I24: 24,629 | J24: 132,244 | K24: 384
D25: гор.напиток | E25: чай с сахаром | F25: 200 | G25: 0 | H25: 0 | I25: 8 | J25: 32 | K25: 943
D26: хлеб | E26: хлеб пшеничный | F26: 40 | G26: 3,04 | H26: 0,32 | I26: 19,68 | J26: 94
D27: итого | F27: =F26+F25+F24 -> 370 | G27: =G26+G25+G24 -> 8.325 | H27: =H26+H25+H24 -> 4.805 | I27: 52.309 | J27: 258.244 | K27: 0
A28: =A18 -> 1 | B28: =B18 -> 2 | C28: Итого за день: | F28: =F23+F27 -> 915 | G28: =G23+G27 -> 18.689 | H28: =H23+H27 -> 15.913 | I28: =I23+I27 -> 95.824 | J28: =J23+J27 -> 438.29 | K28: 0
A29: 1 | B29: 3 | C29: Завтрак | D29: 1 блюдо | E29: Суп гороховый с мясными фрикадельками | F29: 250 | G29: 13.548 | H29: 12.204 | I29: 12.424 | J29: 238.382 | K29: 206/2013
D30: гор.напиток | E30: чай с сахаром | F30: 200 | G30: 0 | H30: 0 | I30: 8 | J30: 32 | K30: 943
D31: хлеб черн. | E31: хлеб сельский | F31: 40 | G31: 1.32 | H31: 0.48 | I31: 19.16 | J31: 94.8
D32: конд.изд. | E32: Булочка домашняя | F32: 50 | G32: 2.751 | H32: 9.36 | I32: 11.214 | J32: 133.717 | K32: 144
D33: итого | F33: =F32+F31+F30+F29 -> 540 | G33: =G32+G31+G30+G29 -> 17.619 | H33: =H32+H31+H30+H29 -> 22.044 | I33: =I32+I31+I30+I29 -> 50.798 | J33: =J32+J31+J30+J29 -> 498.899 | K33: 0
A34: =A29 -> 1 | B34: =B29 -> 3 | C34: Завтрак 2 | D34: гор.блюдо | E34: Каша вязкая молочная из гречневой крупы | F34: 160 | G34: 7,065 | H34: 10,785 | I34: 29,4 | J34: 236,775 | K34: 384
D35: гор.напиток | E35: чай с сахаром | F35: 200 | G35: 0 | H35: 0 | I35: 8 | J35: 32 | K35: 943
D36: хлеб | E36: Хлеб пшеничный | F36: 40 | G36: 3,04 | H36: 0,32 | I36: 19,68 | J36: 94
D37: итого | F37: =F36+F35+F34 -> 400 | G37: =G36+G35+G34 -> 10 | H37: 11 | I37: 57 | J37: 363 | K37: 0
A38: =A29 -> 1 | B38: =B29 -> 3 | C38: Итого за день: | F38: =F33+F37 -> 940 | G38: =G33+G37 -> 27.724 | H38: =H33+H37 -> 33.149 | I38: =I33+I37 -> 107.878 | J38: =J33+J37 -> 861.674 | K38: 0
A39: 1 | B39: 4 | C39: Завтрак | D39: 2 блюдо | E39: биточки из говядины с соусом | F39: 90 | G39: 6.576 | H39: 6.879 | I39: 7.965 | J39: 115.61 | K39: 621:759
D40: гарнир | E40: макароны отварные со слив маслом | F40: 155 | G40: 2,35 | H40: 2,55 | I40: 18,55 | J40: 85,86 | K40: 414
D41: сладкое | E41: чай с сахаром | F41: 200 | G41: 0 | H41: 0 | I41: 8 | J41: 32 | K41: 943
D42: хлеб черн. | E42: хлеб сельский | F42: 40 | G42: 1,32 | H42: 0.48 | I42: 19,16 | J42: 94.8
D43: фрукты | E43: апельсин | F43: 50 | G43: 0,45 | H43: 0,1 | I43: 4,05 | J43: 21,5
D44: итого | F44: =F42+F41+F40+F39+F43 -> 535 | G44: =G42+G41+G40+G39+G43 -> 11 | H44: 10 | I44: =I42+I41+I40+I39+I43 -> 58 | J44: 350 | K44: 0.0
A45: =A39 -> 1 | B45: =B39 -> 4 | C45: Завтрак 2 | D45: гор.напиток | E45: чай с сахаром | F45: 200 | G45: 0 | H45: 0 | I45: 8 | J45: 32 | K45: 943
D46: хлеб | E46: Бутерброд с маслом | F46: 60 | G46: 3,74 | H46: 5,1 | I46: 24,74 | J46: 145,5 | K46: 3
D47: гор.блюдо | E47: Запеканка из творога | F47: 75 | G47: 5.419 | H47: 5.775 | I47: 15.042 | J47: 112.104 | K47: 469
D48: итого | F48: =F45+F46+F47 -> 335.0 | G48: =G45+G46+G47 -> 9.2 | H48: 10.9 | I48: 47.8 | J48: 289.6 | K48: 0.0
A49: =A39 -> 1 | B49: =B39 -> 4 | C49: Итого за день: | F49: =F48+F44 -> 870 | G49: =G44+G48 -> 19.855 | H49: =H44+H48 -> 20.884 | I49: =I44+I48 -> 105.507 | J49: =J44+J48 -> 639.374 | K49: 0
A50: 1 | B50: 5 | C50: Завтрак | D50: закуска | E50: Салат из свеклы с яблоками | F50: 60 | G50: 0,723 | H50: 3,104 | I50: 6.924 | J50: 58,895 | K50: 36
D51: 2 блюдо | E51: Котлеты из рыбы с соусом | F51: 90 | G51: 10.312 | H51: 10.997 | I51: 12.239 | J51: 182.984 | K51: 510:759
D52: гарнир | E52: Картофельное пюре со сливочным маслом | F52: 153 | G52: 1.424 | H52: 2.092 | I52: 8.135 | J52: 59.212 | K52: 299
D53: гор.напиток | E53: чай с сахаром | F53: 200 | G53: 0 | H53: 0 | I53: 8 | J53: 32 | K53: 943
D54: хлеб черн. | E54: хлеб сельский | F54: 40 | G54: 1.32 | H54: 0.48 | I54: 19.16 | J54: 94.8
D55: итого | F55: =F50+F51+F52+F53+F54 -> 543 | G55: =G50+G51+G52+G53+G54 -> 14 | H55: 17 | I55: 54 | J55: 428 | K55: 0
A56: =A50 -> 1 | B56: =B50 -> 5 | C56: Завтрак 2 | D56: гор.блюдо | E56: Каша вязкая молочная из пшенной крупы со сливочным маслом | F56: 130 | G56: 5,61 | H56: 5,038 | I56: 28,385 | J56: 175,81 | K56: 384
D57: гор.напиток | E57: чай с сахаром | F57: 200 | G57: 0 | H57: 0 | I57: 8 | J57: 32 | K57: 943
D58: хлеб | E58: хлеб пшеничный | F58: 40 | G58: 3,04 | H58: 0,32 | I58: 19,68 | J58: 94
D59: итого | F59: =F58+F57+F56 -> 370 | G59: =G58+G57+G56 -> 9 | H59: 5 | I59: 56 | J59: 302 | K59: 0
A60: =A50 -> 1 | B60: =B50 -> 5 | C60: Итого за день: | F60: =F59+F55 -> 913.00 | G60: =G59+G55 -> 22.43 | H60: 22.03 | I60: 110.52 | J60: 729.70 | K60: 0.00
A61: 1 | B61: 6 | C61: Завтрак | D61: фрукты | E61: яблоко | F61: 85 | G61: 0.299 | H61: 0.299 | I61: 7.33 | J61: 35.156
D62: 2 блюдо | E62: голубцы ленивые | F62: 150 | G62: 16.324 | H62: 18.47 | I62: 45.758 | J62: 378.02 | K62: 636
D63: гор.напиток | E63: чай с сахаром | F63: 200 | G63: 0 | H63: 0 | I63: 8 | J63: 32 | K63: 943
D64: хлеб бел. | E64: хлеб пшеничный | F64: 40 | G64: 3.04 | H64: 0.32 | I64: 19.68 | J64: 94
D65: конд.изд. | E65: пряники "Мятные" | F65: 30 | G65: 1.05 | H65: 0.36 | I65: 21.9 | J65: 92.7
D66: 2 блюдо | E66: голубцы ленивые | F66: 150 | G66: 16.324 | H66: 18.47 | I66: 45.758 | J66: 378.02
D67: фрукты | E67: Яблоко | F67: 85 | G67: 0.299 | H67: 0.299 | I67: 7.33 | J67: 35.166
E68: Чай с сахаром | F68: 200 | G68: 0 | H68: 0 | I68: 8 | J68: 32
D69: итого | F69: =SUM(F64:F68) -> 505 | G69: =SUM(G64:G68) -> 20.713 | H69: 19.449 | I69: 102.668 | J69: 631.886 | K69: 0
A70: 1 | B70: =B61 -> 6 | C70: Завтрак 2 | D70: закуска
D71: 1 блюдо
D72: 2 блюдо
D73: гарнир
D74: напиток
D75: хлеб бел.
D76: хлеб черн.
D77: итого | F77: =SUM(F70:F76) -> 0 | G77: =SUM(G70:G76) -> 0 | H77: =SUM(H70:H76) -> 0 | I77: =SUM(I70:I76) -> 0 | J77: =SUM(J70:J76) -> 0
A78: =A61 -> 1 | B78: =B61 -> 6 | C78: Итого за день: | F78: =F69+F77 -> 505 | G78: =G69+G77 -> 20.713 | H78: =H69+H77 -> 19.449 | I78: =I69+I77 -> 102.668 | J78: =J69+J77 -> 631.886
A79: 2 | B79: 1 | C79: Завтрак
D80: 2 блюдо | E80: котлеты из мяса птицы с соусом | F80: 90 | G80: 6.5 | H80: 7.565 | I80: 11.447 | J80: 60.724 | K80: 667:759
D81: гарнир | E81: Каша гречневая рассыпчатая со сливочным маслом | F81: 156 | G81: 6.486 | H81: 5.676 | I81: 34.764 | J81: 207.51 | K81: 378
D82: сладкое | E82: Компот из урюка и яблок | F82: 200 | G82: 1.01 | H82: 0.028 | I82: 5.25 | J82: 24.75 | K82: 393
D83: хлеб черн. | E83: хлеб сельский | F83: 40 | G83: 1.32 | H83: 0.48 | I83: 19.16 | J83: 94.8
D84: итого | F84: =F83+F82+F81+F80+F79 -> 486 | G84: =G83+G82+G81+G80+G79 -> 15 | H84: 14 | I84: 71 | J84: 388 | K84: 0
A85: =A79 -> 2 | B85: =B79 -> 1 | C85: Завтрак 2 | D85: гор.блюдо | E85: Каша молочная из манной крупы со сливочным маслом | F85: 130 | G85: 4.9 | H85: 4.385 | I85: 27.032 | J85: 168.76 | K85: 384
D86: гор.напиток | E86: Чай с сахаром | F86: 200 | G86: 0 | H86: 0 | I86: 8 | J86: 32 | K86: 943
D87: хлеб | E87: Хлеб пшеничный | F87: 40 | G87: 3.04 | H87: 0.32 | I87: 19.68 | J87: 94
D88: итого | F88: =F87+F86+F85 -> 370 | G88: =G87+G86+G85 -> 7.94 | H88: 4.705 | I88: 54.712 | J88: 294.76 | K88: 0
A89: =A79 -> 2 | B89: =B79 -> 1 | C89: Итого за день: | F89: =F88+F84 -> 856 | G89: =G88+G84 -> 23 | H89: 18 | I89: 125 | J89: 683 | K89: 0
A90: 2 | B90: 2 | C90: Завтрак | D90: 1 блюдо | E90: Уха с крупой | F90: 250 | G90: 9,06 | H90: 7,038 | I90: 15,221 | J90: 103,007 | K90: 182
D91: сладкое | E91: Какао с молоком | F91: 200 | G91: 1.046 | H91: 1.856 | I91: 6.12 | J91: 99.07 | K91: 959
D92: хлеб черн. | E92: Хлеб сельский | F92: 40 | G92: 1.32 | H92: 0.48 | I92: 19.16 | J92: 94.8
D93: конд.изд. | E93: Булочка домашняя | F93: 50 | G93: 2.751 | H93: 9.36 | I93: 11.214 | J93: 133.717 | K93: 144
D94: итого | F94: =F93+F92+F91+F90 -> 540 | G94: =G93+G92+G91+G90 -> 14 | H94: 19 | I94: 52 | J94: 431 | K94: 0
A95: =A90 -> 2 | B95: =B90 -> 2 | C95: Завтрак 2 | D95: гор.блюдо | E95: Каша вязкая молочная из рисовой крупы со сливочным маслом | F95: 130 | G95: 3.74 | H95: 4.385 | I95: 27.322 | J95: 144.413 | K95: 384
D96: гор.напиток | E96: Чай с сахаром | F96: 200 | G96: 0 | H96: 0 | I96: 8 | J96: 32 | K96: 943
D97: хлеб | E97: Хлеб пшеничный | F97: 40 | G97: 3,04 | H97: 0,32 | I97: 19,68 | J97: 94
D98: итого | F98: =F97+F96+F95 -> 370 | G98: =G97+G96+G95 -> 6.78 | H98: 4.705 | I98: 55.002 | J98: 270.413 | K98: 0
A99: =A90 -> 2 | B99: =B90 -> 2 | C99: Итого за день: | F99: =F98+F94 -> 910 | G99: =G98+G94 -> 20.957 | H99: 23.439 | I99: 106.717 | J99: 701.007 | K99: 0
A100: 2 | B100: 3 | C100: Завтрак | D100: 2 блюдо | E100: Котлеты из говядины с соусом | F100: 90 | G100: 7,275 | H100: 6,434 | I100: 12,295 | J100: 85,14 | K100: 608:759
D101: гарнир | E101: макароны отварные со сливочным маслом | F101: 155 | G101: 2,35 | H101: 2.55 | I101: 18.55 | J101: 85.86 | K101: 414
D102: сладкое | E102: чай с сахаром | F102: 200 | G102: 0 | H102: 0 | I102: 8 | J102: 32 | K102: 867
D103: хлеб черн. | E103: хлеб сельский | F103: 40 | G103: 1,32 | H103: 0.48 | I103: 19.16 | J103: 94.8
D104: итого | F104: =F103+F102+F101+F100 -> 485 | G104: =G103+G102+G101+G100 -> 11 | H104: 9 | I104: 58 | J104: 298 | K104: 0
A105: =A100 -> 2 | B105: =B100 -> 3 | C105: Завтрак 2 | D105: гор. блюдо | E105: омлет натуральный | F105: 130 | G105: 12.229 | H105: 21.629 | I105: 2.573 | J105: 253.85 | K105: 340
D106: гор.напиток | E106: Чай с сахаром | F106: 200 | G106: 0 | H106: 0 | I106: 8 | J106: 32 | K106: 943
D107: хлеб | E107: Бутерброд с сыром | F107: 60 | G107: 4,097 | H107: 3.965 | I107: 9.98 | J107: 96.05 | K107: 3
D108: итого | F108: =F107+F106+F105 -> 390 | G108: =G107+G106+G105 -> 16.326 | H108: 25.594 | I108: 20.553 | J108: 381.9 | K108: 0
A109: =A100 -> 2 | B109: =B100 -> 3 | C109: Итого за день: | F109: =F108+F104 -> 875 | G109: =G108+G104 -> 27 | H109: 35 | I109: 79 | J109: 680 | K109: 0
A110: 2 | B110: 4 | C110: Завтрак | D110: 1 блюдо | E110: борщ с капустой и картофелем с фрикадельками из мяса птицы | F110: 250 | G110: 14,275 | H110: 14,1 | I110: 24,192 | J110: 144,27 | K110: 170/179
D111: гор.напиток | E111: чай с сахаром | F111: 200 | G111: 0 | H111: 0 | I111: 8 | J111: 32 | K111: 943
D112: хлеб | E112: хлеб сельский | F112: 40 | G112: 1,32 | H112: 0,48 | I112: 19,16 | J112: 94,8
D113: сладкое | E113: Печенье "Нарезное" 25гр. | F113: 25 | G113: 0,875 | H113: 0,3 | I113: 18,25 | J113: 77,25
D114: итого | F114: =F110+F111+F112+F113 -> 515 | G114: =G110+G111+G112+G113 -> 16 | H114: 15 | I114: 70 | J114: 348
A115: =A110 -> 2 | B115: =B110 -> 4 | C115: Завтрак 2 | D115: гор.блюдо | E115: запеканка из творога | F115: 75 | G115: 5,8 | H115: 6,83 | I115: 15.042 | J115: 112.104 | K115: 469
D116: гор.напиток | E116: чай с сахаром | F116: 200 | G116: 0 | H116: 0 | I116: 8 | J116: 32 | K116: 943
D117: хлеб | E117: хлеб пшеничный | F117: 40 | G117: 3,04 | H117: 0.32 | I117: 19.68 | J117: 94
D118: итого | F118: =F117+F116+F115 -> 315 | G118: =G117+G116+G115 -> 8.84 | H118: 7.15 | I118: 42.722 | J118: 238.104
A119: =A110 -> 2 | B119: =B110 -> 4 | C119: Итого за день: | F119: =F118+F114 -> 830 | G119: =G114+G118 -> 25.31 | H119: =H114+H118 -> 22.03 | I119: =I114+I118 -> 112.324 | J119: =J114+J118 -> 586.424
A120: 2 | B120: 5 | C120: Завтрак
D121: 2 блюдо | E121: Тефтели с мясом и рисом с соусом | F121: 90 | G121: 12,284 | H121: 13,56 | I121: 17,22 | J121: 165,608 | K121: 462/759
D122: гарнир | E122: Гороховое пюре | F122: 150 | G122: 10,553 | H122: 7,587 | I122: 9,052 | J122: 201,962 | K122: 182
D123: гор.напиток | E123: чай с сахаром | F123: 200 | G123: 0 | H123: 0 | I123: 8 | J123: 32 | K123: 943
D124: хлеб черн. | E124: хлеб сельский | F124: 40 | G124: 1,32 | H124: 0,48 | I124: 19,16 | J124: 94,8
D126: итого | F126: =F124+F123+F122+F120+F121 -> 480 | G126: =G124+G123+G122+G120+G121 -> 24.157 | H126: 21.627 | I126: 53.432 | J126: 494.37
A127: =A120 -> 2 | B127: =B120 -> 5 | C127: Завтрак 2 | D127: гор.блюдо | E127: Каша вязкая молочная из пшеничный крупы со слив маслом | F127: 130 | G127: 5,285 | H127: 4,485 | I127: 27,637 | J127: 132,244 | K127: 384
D128: гор.напиток | E128: чай с сахаром | F128: 200 | G128: 0 | H128: 0 | I128: 8 | J128: 32 | K128: 943
D129: хлеб | E129: Хлеб пшеничный | F129: 40 | G129: 3.04 | H129: 0,32 | I129: 19,68 | J129: 94
D131: итого | F131: =F127+F128+F129 -> 370 | G131: =G127+G128+G129 -> 45755.285 | H131: 4.805 | I131: 55.317 | J131: 258.244
A132: =A120 -> 2 | B132: =B120 -> 5 | C132: Итого за день: | F132: =F131+F126 -> 850 | G132: =G131+G126 -> 45779.442 | H132: 26.432 | I132: 108.749 | J132: 752.614
A133: 2 | B133: 6 | C133: Завтрак | D133: фрукты | E133: Апельсин | F133: 85 | G133: 0.765 | H133: 0.17 | I133: 6.885 | J133: 36.55
D134: 1 блюдо | E134: Плов с мясом | F134: 150 | G134: 19.33 | H134: 22.8 | I134: 36.82 | J134: 404.74 | K134: 443
D135: сладкое | E135: чай с сахаром | F135: 200 | G135: 0 | H135: 0 | I135: 8 | J135: 32 | K135: 943
D136: хлеб | E136: Хлеб пшеничный | F136: 40 | G136: 3.04 | H136: 0.32 | I136: 19.68 | J136: 94
D138: итого | F138: =SUM(F133:F137) -> 475 | G138: =SUM(G133:G137) -> 23.135 | H138: =SUM(H133:H137) -> 23.29 | I138: =SUM(I133:I137) -> 71.385 | J138: =SUM(J133:J137) -> 567.29
A139: =A133 -> 2 | B139: 6 | C139: Завтрак 2
D148: итого | F148: =SUM(F139:F147) -> 0 | G148: =SUM(G139:G147) -> 0 | H148: 0 | I148: 0 | J148: 0 | L148: =SUM(L139:L147) -> 0
A149: =A133 -> 2 | B149: =B133 -> 6 | C149: Итого за день: | F149: =F138+F148 -> 475 | G149: =G138+G148 -> 23.135 | H149: =H138+H148 -> 23.29 | I149: =I138+I148 -> 71.385 | J149: =J138+J148 -> 567.29 | L149: =L138+L148 -> 0
C150: Среднее значение за период: | F150: =(F17+F28+F38+F49+F60+F89+F99+F109+F119+F132)/(IF(F17=0,0,1)+IF(F28=0,0,1)+IF(F38=0,0,1)+IF(F49=0,0,1)+IF(F60=0,0,1)+IF(F89=0,0,1)+IF(F99=0,0,1)+IF(F109=0,0,1)+IF(F119=0,0,1)+IF(F132=0,0,1)) -> 881.5 | G150: =(G17+G28+G38+G49+G60+G89+G99+G109+G119+G132)/(IF(G17=0,0,1)+IF(G28=0,0,1)+IF(G38=0,0,1)+IF(G49=0,0,1)+IF(G60=0,0,1)+IF(G89=0,0,1)+IF(G99=0,0,1)+IF(G109=0,0,1)+IF(G119=0,0,1)+IF(G132=0,0,1)) -> 4598.9615 | H150: =(H17+H28+H38+H49+H60+H89+H99+H109+H119+H132)/(IF(H17=0,0,1)+IF(H28=0,0,1)+IF(H38=0,0,1)+IF(H49=0,0,1)+IF(H60=0,0,1)+IF(H89=0,0,1)+IF(H99=0,0,1)+IF(H109=0,0,1)+IF(H119=0,0,1)+IF(H132=0,0,1)) -> 24.0909 | I150: =(I17+I28+I38+I49+I60+I89+I99+I109+I119+I132)/(IF(I17=0,0,1)+IF(I28=0,0,1)+IF(I38=0,0,1)+IF(I49=0,0,1)+IF(I60=0,0,1)+IF(I89=0,0,1)+IF(I99=0,0,1)+IF(I109=0,0,1)+IF(I119=0,0,1)+IF(I132=0,0,1)) -> 100.4465 | J150: =(J17+J28+J38+J49+J60+J89+J99+J109+J119+J132)/(IF(J17=0,0,1)+IF(J28=0,0,1)+IF(J38=0,0,1)+IF(J49=0,0,1)+IF(J60=0,0,1)+IF(J89=0,0,1)+IF(J99=0,0,1)+IF(J109=0,0,1)+IF(J119=0,0,1)+IF(J132=0,0,1)) -> 684.6756 | L150: =(L17+L28+L38+L49+L60+L89+L99+L109+L119+L132)/(IF(L17=0,0,1)+IF(L28=0,0,1)+IF(L38=0,0,1)+IF(L49=0,0,1)+IF(L60=0,0,1)+IF(L89=0,0,1)+IF(L99=0,0,1)+IF(L109=0,0,1)+IF(L119=0,0,1)+IF(L132=0,0,1)) -> 
